[Event "Titled Tuesday Blitz May 16 Early 2023"]
[White "Girya, Olga"]
[Black "Kuzmin, Roman"]
[WhiteFideId "4195752"]
[BlackFideId "44134932"]
[WhiteElo "2263"]
[BlackElo "2122"]
[Result "1-0"]
[Round "06"]
[TimeControl "180+2"]
[Date "2023.05.16"]
[WhiteClock "0:00:07"]
[BlackClock "0:00:00"]

1. d4 {[%clk 0:03:00]}  Nf6 {[%clk 0:02:59]} 2. Nf3 {[%clk 0:03:01]}  e6 {[%clk 0:02:59]} 3. c4 {[%clk 0:03:01]}  d5 {[%clk 0:03:00]} 4. Nc3 {[%clk 0:03:00]}  c6 {[%clk 0:03:00]} 5. e3 {[%clk 0:02:59]}  Nbd7 {[%clk 0:02:59]} 6. Qc2 {[%clk 0:02:57]}  Bd6 {[%clk 0:03:00]} 7. b3 {[%clk 0:02:57]}  O-O {[%clk 0:02:59]} 8. Be2 {[%clk 0:02:57]}  dxc4 {[%clk 0:02:54]} 9. bxc4 {[%clk 0:02:56]}  e5 {[%clk 0:02:55]} 10. O-O {[%clk 0:02:56]}  Qe7 {[%clk 0:02:52]} 11. Rd1 {[%clk 0:02:50]}  b6 {[%clk 0:02:50]} 12. a4 {[%clk 0:02:43]}  Bb7 {[%clk 0:02:49]} 13. a5 {[%clk 0:02:39]}  Bb4 {[%clk 0:02:06]} 14. a6 {[%clk 0:02:33]}  Bc8 {[%clk 0:02:05]} 15. Bb2 {[%clk 0:02:18]}  exd4 {[%clk 0:01:57]} 16. exd4 {[%clk 0:02:09]}  Re8 {[%clk 0:01:55]} 17. Bd3 {[%clk 0:02:09]}  Nf8 {[%clk 0:01:52]} 18. Ne5 {[%clk 0:02:03]}  Bd7 {[%clk 0:01:49]} 19. Nxd7 {[%clk 0:01:50]}  Qxd7 {[%clk 0:01:50]} 20. c5 {[%clk 0:01:26]}  Bxc3 {[%clk 0:01:46]} 21. Bxc3 {[%clk 0:01:23]}  b5 {[%clk 0:01:47]} 22. Bf5 {[%clk 0:00:54]}  Qd5 {[%clk 0:01:37]} 23. Bb2 {[%clk 0:00:52]}  Ng6 {[%clk 0:01:28]} 24. g3 {[%clk 0:00:47]}  Re7 {[%clk 0:00:48]} 25. Re1 {[%clk 0:00:36]}  Rae8 {[%clk 0:00:48]} 26. Rxe7 {[%clk 0:00:36]}  Rxe7 {[%clk 0:00:49]} 27. Bh3 {[%clk 0:00:34]}  Qd8 {[%clk 0:00:47]} 28. Bg2 {[%clk 0:00:33]}  Nd5 {[%clk 0:00:47]} 29. Qd2 {[%clk 0:00:31]}  Re6 {[%clk 0:00:44]} 30. Re1 {[%clk 0:00:30]}  Rxe1+ {[%clk 0:00:39]} 31. Qxe1 {[%clk 0:00:30]}  Nge7 {[%clk 0:00:31]} 32. h4 {[%clk 0:00:18]}  Qc8 {[%clk 0:00:30]} 33. Qe5 {[%clk 0:00:14]}  Qc7 {[%clk 0:00:30]} 34. Qg5 {[%clk 0:00:08]}  h6 {[%clk 0:00:28]} 35. Qg4 {[%clk 0:00:08]}  Qc8 {[%clk 0:00:27]} 36. Qe2 {[%clk 0:00:07]}  Qxa6 {[%clk 0:00:18]} 37. Bxd5 {[%clk 0:00:07]}  Nxd5 {[%clk 0:00:19]} 38. Qe8+ {[%clk 0:00:07]}  Kh7 {[%clk 0:00:20]} 39. Qxf7 {[%clk 0:00:06]}  Qc8 {[%clk 0:00:17]} 40. Qxa7 {[%clk 0:00:05]}  Qe8 {[%clk 0:00:16]} 41. Qa3 {[%clk 0:00:03]}  Qe1+ {[%clk 0:00:14]} 42. Kg2 {[%clk 0:00:04]}  b4 {[%clk 0:00:12]} 43. Qb3 {[%clk 0:00:03]}  Qe4+ {[%clk 0:00:11]} 44. Kh2 {[%clk 0:00:03]}  Qf5 {[%clk 0:00:08]} 45. Kg2 {[%clk 0:00:03]}  Qe4+ {[%clk 0:00:07]} 46. Qf3 {[%clk 0:00:03]}  Qc2 {[%clk 0:00:06]} 47. h5 {[%clk 0:00:01]}  Qxb2 {[%clk 0:00:02]} 48. Qf5+ {[%clk 0:00:02]}  Kg8 {[%clk 0:00:02]} 49. Qc8+ {[%clk 0:00:02]}  Kf7 {[%clk 0:00:02]} 50. Qxc6 {[%clk 0:00:02]}  Qxd4 {[%clk 0:00:02]} 51. Qd7+ {[%clk 0:00:02]}  Kf6 {[%clk 0:00:02]} 52. Qd6+ {[%clk 0:00:02]}  Kf7 {[%clk 0:00:01]} 53. Qd7+ {[%clk 0:00:02]}  Kg8 {[%clk 0:00:01]} 54. Qe8+ {[%clk 0:00:03]}  Kh7 {[%clk 0:00:02]} 55. Qg6+ {[%clk 0:00:03]}  Kg8 {[%clk 0:00:02]} 56. c6 {[%clk 0:00:03]}  Qc4 {[%clk 0:00:02]} 57. Qe8+ {[%clk 0:00:03]}  Kh7 {[%clk 0:00:02]} 58. Qg6+ {[%clk 0:00:03]}  Kg8 {[%clk 0:00:02]} 59. Qe6+ {[%clk 0:00:03]}  Kf8 {[%clk 0:00:02]} 60. c7 {[%clk 0:00:04]}  Qxc7 {[%clk 0:00:02]} 61. Qxd5 {[%clk 0:00:04]}  Qb6 {[%clk 0:00:02]} 62. Qf5+ {[%clk 0:00:04]}  Ke7 {[%clk 0:00:02]} 63. Qe5+ {[%clk 0:00:04]}  Kf8 {[%clk 0:00:01]} 64. Qf5+ {[%clk 0:00:04]}  Kg8 {[%clk 0:00:02]} 65. Qc8+ {[%clk 0:00:04]}  Kf7 {[%clk 0:00:02]} 66. Qf5+ {[%clk 0:00:04]}  Qf6 {[%clk 0:00:02]} 67. Qd7+ {[%clk 0:00:04]}  Qe7 {[%clk 0:00:02]} 68. Qf5+ {[%clk 0:00:04]}  Kg8 {[%clk 0:00:03]} 69. Qc8+ {[%clk 0:00:04]}  Kh7 {[%clk 0:00:03]} 70. Qf5+ {[%clk 0:00:05]}  Kh8 {[%clk 0:00:03]} 71. Qc8+ {[%clk 0:00:05]}  Kh7 {[%clk 0:00:04]} 72. Qf5+ {[%clk 0:00:05]}  Kg8 {[%clk 0:00:04]} 73. Qc8+ {[%clk 0:00:06]}  Kf7 {[%clk 0:00:05]} 74. Qf5+ {[%clk 0:00:06]}  Ke8 {[%clk 0:00:04]} 75. Qb5+ {[%clk 0:00:06]}  Kd8 {[%clk 0:00:03]} 76. Qb8+ {[%clk 0:00:07]}  Kd7 {[%clk 0:00:04]} 77. Qb7+ {[%clk 0:00:07]}  Ke6 {[%clk 0:00:03]} 78. Qe4+ {[%clk 0:00:07]}  Kd7 {[%clk 0:00:03]} 79. Qb7+ {[%clk 0:00:07]}  Ke8 {[%clk 0:00:03]} 80. Qb8+ {[%clk 0:00:07]}  Kf7 {[%clk 0:00:01]} 81. Qf4+ {[%clk 0:00:07]}  Kg8 {[%clk 0:00:01]} 82. Qc4+ {[%clk 0:00:07]}  Kh8 {[%clk 0:00:00]} 83. Qd3 {[%clk 0:00:07]} 1-0


[Site "https://www.chess.com"]

[Event "Titled Tuesday Blitz May 16 Early 2023"]
[White "Lehtosaari, Mauri"]
[Black "Mamedov, Edgar"]
[WhiteFideId "501999"]
[BlackFideId "13739980"]
[WhiteElo "2507"]
[BlackElo "2317"]
[Result "1/2-1/2"]
[Round "06"]
[TimeControl "180+2"]
[Date "2023.05.16"]
[WhiteClock "0:00:11"]
[BlackClock "0:00:08"]

1. d4 {[%clk 0:02:57]}  d5 {[%clk 0:02:59]} 2. Nf3 {[%clk 0:02:48]}  Nf6 {[%clk 0:02:59]} 3. Bg5 {[%clk 0:02:48]}  Nbd7 {[%clk 0:02:58]} 4. Nbd2 {[%clk 0:02:48]}  e6 {[%clk 0:02:58]} 5. e3 {[%clk 0:02:47]}  Be7 {[%clk 0:02:58]} 6. Bd3 {[%clk 0:02:48]}  O-O {[%clk 0:02:58]} 7. O-O {[%clk 0:02:47]}  c5 {[%clk 0:02:58]} 8. c3 {[%clk 0:02:47]}  b6 {[%clk 0:02:57]} 9. Ne5 {[%clk 0:02:46]}  Nxe5 {[%clk 0:02:57]} 10. dxe5 {[%clk 0:02:47]}  Nd7 {[%clk 0:02:57]} 11. Bxe7 {[%clk 0:02:47]}  Qxe7 {[%clk 0:02:57]} 12. f4 {[%clk 0:02:48]}  f6 {[%clk 0:02:56]} 13. Qh5 {[%clk 0:02:47]}  g6 {[%clk 0:02:56]} 14. Qh4 {[%clk 0:02:47]}  Qg7 {[%clk 0:02:55]} 15. Nf3 {[%clk 0:02:32]}  Bb7 {[%clk 0:02:53]} 16. Bb5 {[%clk 0:02:31]}  f5 {[%clk 0:02:43]} 17. Ng5 {[%clk 0:02:02]}  Qe7 {[%clk 0:02:41]} 18. Qh6 {[%clk 0:01:55]}  Rfd8 {[%clk 0:02:36]} 19. h4 {[%clk 0:01:33]}  Nf8 {[%clk 0:02:35]} 20. h5 {[%clk 0:01:27]}  Qg7 {[%clk 0:02:32]} 21. Qxg7+ {[%clk 0:01:24]}  Kxg7 {[%clk 0:02:33]} 22. hxg6 {[%clk 0:01:25]}  hxg6 {[%clk 0:02:32]} 23. Kf2 {[%clk 0:01:22]}  a6 {[%clk 0:02:31]} 24. Be2 {[%clk 0:01:18]}  d4 {[%clk 0:02:31]} 25. exd4 {[%clk 0:01:10]}  cxd4 {[%clk 0:02:32]} 26. c4 {[%clk 0:01:09]}  d3 {[%clk 0:02:28]} 27. Bf3 {[%clk 0:01:03]}  Bxf3 {[%clk 0:02:27]} 28. Kxf3 {[%clk 0:01:02]}  Rac8 {[%clk 0:02:26]} 29. b3 {[%clk 0:01:00]}  b5 {[%clk 0:02:26]} 30. cxb5 {[%clk 0:01:00]}  axb5 {[%clk 0:02:27]} 31. Rf2 {[%clk 0:01:00]}  d2 {[%clk 0:01:59]} 32. Rd1 {[%clk 0:00:59]}  Rc2 {[%clk 0:01:58]} 33. a4 {[%clk 0:00:59]}  b4 {[%clk 0:01:57]} 34. Re2 {[%clk 0:00:53]}  Rc3+ {[%clk 0:01:56]} 35. Re3 {[%clk 0:00:53]}  Rdd3 {[%clk 0:01:43]} 36. Rxd3 {[%clk 0:00:51]}  Rxd3+ {[%clk 0:01:43]} 37. Ke2 {[%clk 0:00:52]}  Rxb3 {[%clk 0:01:43]} 38. Rxd2 {[%clk 0:00:51]}  Ra3 {[%clk 0:01:42]} 39. Rd8 {[%clk 0:00:50]}  Rxa4 {[%clk 0:01:38]} 40. Rb8 {[%clk 0:00:51]}  Ra2+ {[%clk 0:01:35]} 41. Kf3 {[%clk 0:00:51]}  Ra3+ {[%clk 0:01:34]} 42. Kf2 {[%clk 0:00:47]}  b3 {[%clk 0:01:34]} 43. Rb7+ {[%clk 0:00:46]}  Kg8 {[%clk 0:01:33]} 44. Rb8 {[%clk 0:00:44]}  Kg7 {[%clk 0:01:26]} 45. Rb7+ {[%clk 0:00:44]}  Kh6 {[%clk 0:01:21]} 46. Rb8 {[%clk 0:00:34]}  Kh5 {[%clk 0:00:40]} 47. Rxf8 {[%clk 0:00:24]}  Kg4 {[%clk 0:00:40]} 48. Rb8 {[%clk 0:00:21]}  Ra2+ {[%clk 0:00:24]} 49. Ke3 {[%clk 0:00:20]}  b2 {[%clk 0:00:23]} 50. Nxe6 {[%clk 0:00:18]}  Ra3+ {[%clk 0:00:16]} 51. Kd4 {[%clk 0:00:12]}  Ra2 {[%clk 0:00:16]} 52. Nc5 {[%clk 0:00:08]}  Kxf4 {[%clk 0:00:12]} 53. e6 {[%clk 0:00:08]}  b1=Q {[%clk 0:00:06]} 54. Rxb1 {[%clk 0:00:09]}  Re2 {[%clk 0:00:06]} 55. Nd3+ {[%clk 0:00:09]}  Kg5 {[%clk 0:00:06]} 56. Rb7 {[%clk 0:00:06]}  Rxe6 {[%clk 0:00:06]} 57. g3 {[%clk 0:00:03]}  Kg4 {[%clk 0:00:05]} 58. Nf4 {[%clk 0:00:03]}  Re4+ {[%clk 0:00:03]} 59. Kd5 {[%clk 0:00:03]}  g5 {[%clk 0:00:04]} 60. Ng6 {[%clk 0:00:03]}  Kxg3 {[%clk 0:00:03]} 61. Rf7 {[%clk 0:00:02]}  g4 {[%clk 0:00:02]} 62. Rxf5 {[%clk 0:00:02]}  Ra4 {[%clk 0:00:02]} 63. Ke5 {[%clk 0:00:01]}  Ra5+ {[%clk 0:00:02]} 64. Kf6 {[%clk 0:00:01]}  Ra6+ {[%clk 0:00:02]} 65. Kg5 {[%clk 0:00:02]}  Ra4 {[%clk 0:00:02]} 66. Re5 {[%clk 0:00:01]}  Rb4 {[%clk 0:00:01]} 67. Rd5 {[%clk 0:00:02]}  Ra4 {[%clk 0:00:02]} 68. Rd3+ {[%clk 0:00:02]}  Kf2 {[%clk 0:00:02]} 69. Rd5 {[%clk 0:00:02]}  g3 {[%clk 0:00:02]} 70. Nh4 {[%clk 0:00:02]}  g2 {[%clk 0:00:01]} 71. Nxg2 {[%clk 0:00:01]}  Kxg2 {[%clk 0:00:02]} 72. Rf5 {[%clk 0:00:02]}  Kg3 {[%clk 0:00:02]} 73. Rf6 {[%clk 0:00:03]}  Kg2 {[%clk 0:00:02]} 74. Kg6 {[%clk 0:00:04]}  Kg3 {[%clk 0:00:02]} 75. Kf7 {[%clk 0:00:05]}  Kg2 {[%clk 0:00:02]} 76. Kg6 {[%clk 0:00:05]}  Kg3 {[%clk 0:00:02]} 77. Kf7 {[%clk 0:00:06]}  Kh3 {[%clk 0:00:03]} 78. Kg6 {[%clk 0:00:07]}  Kg4 {[%clk 0:00:03]} 79. Kf7 {[%clk 0:00:08]}  Kg5 {[%clk 0:00:03]} 80. Rg6+ {[%clk 0:00:08]}  Kf5 {[%clk 0:00:03]} 81. Rf6+ {[%clk 0:00:09]}  Ke5 {[%clk 0:00:04]} 82. Re6+ {[%clk 0:00:10]}  Kd5 {[%clk 0:00:04]} 83. Rf6 {[%clk 0:00:10]}  Re4 {[%clk 0:00:04]} 84. Kg6 {[%clk 0:00:10]}  Ke5 {[%clk 0:00:04]} 85. Rf5+ {[%clk 0:00:09]}  Ke6 {[%clk 0:00:05]} 86. Rf6+ {[%clk 0:00:10]}  Ke7 {[%clk 0:00:05]} 87. Rf5 {[%clk 0:00:10]}  Rg4+ {[%clk 0:00:05]} 88. Rg5 {[%clk 0:00:10]}  Rf4 {[%clk 0:00:05]} 89. Rf5 {[%clk 0:00:10]}  Re4 {[%clk 0:00:05]} 90. Kg5 {[%clk 0:00:10]}  Ke6 {[%clk 0:00:05]} 91. Rf6+ {[%clk 0:00:10]}  Ke7 {[%clk 0:00:05]} 92. Rf5 {[%clk 0:00:11]}  Re6 {[%clk 0:00:06]} 93. Kf4 {[%clk 0:00:11]}  Ra6 {[%clk 0:00:06]} 94. Re5+ {[%clk 0:00:11]}  Kf6 {[%clk 0:00:06]} 95. Rf5+ {[%clk 0:00:11]}  Ke6 {[%clk 0:00:06]} 96. Re5+ {[%clk 0:00:12]}  Kd6 {[%clk 0:00:06]} 97. Rf5 {[%clk 0:00:12]}  Ra8 {[%clk 0:00:06]} 98. Rf6+ {[%clk 0:00:11]}  Kd5 {[%clk 0:00:06]} 99. Rf5+ {[%clk 0:00:12]}  Kd4 {[%clk 0:00:06]} 100. Rf6 {[%clk 0:00:12]}  Re8 {[%clk 0:00:06]} 101. Rd6+ {[%clk 0:00:12]}  Kc5 {[%clk 0:00:06]} 102. Rf6 {[%clk 0:00:13]}  Kd5 {[%clk 0:00:06]} 103. Rf5+ {[%clk 0:00:13]}  Kd4 {[%clk 0:00:07]} 104. Rf6 {[%clk 0:00:13]}  Re1 {[%clk 0:00:07]} 105. Kf5 {[%clk 0:00:13]}  Kd5 {[%clk 0:00:07]} 106. Kg6 {[%clk 0:00:12]}  Ke5 {[%clk 0:00:07]} 107. Rf5+ {[%clk 0:00:12]}  Ke6 {[%clk 0:00:07]} 108. Rf6+ {[%clk 0:00:12]}  Ke7 {[%clk 0:00:07]} 109. Rf7+ {[%clk 0:00:13]}  Ke8 {[%clk 0:00:08]} 110. Rf5 {[%clk 0:00:13]}  Re2 {[%clk 0:00:07]} 111. Kf6 {[%clk 0:00:12]}  Kf8 {[%clk 0:00:07]} 112. Kg6+ {[%clk 0:00:11]}  Ke7 {[%clk 0:00:07]} 113. Rf7+ {[%clk 0:00:12]}  Ke6 {[%clk 0:00:07]} 114. Rf6+ {[%clk 0:00:12]}  Ke5 {[%clk 0:00:07]} 115. Rf5+ {[%clk 0:00:13]}  Ke4 {[%clk 0:00:08]} 116. Rf6 {[%clk 0:00:11]}  Rg2+ {[%clk 0:00:08]} 117. Kf7 {[%clk 0:00:12]}  Ke5 {[%clk 0:00:08]} 118. Re6+ {[%clk 0:00:12]}  Kd5 {[%clk 0:00:08]} 119. Rf6 {[%clk 0:00:11]}  Re2 {[%clk 0:00:08]} 120. Rf5+ {[%clk 0:00:11]}  Kd6 {[%clk 0:00:08]} 121. Rf6+ {[%clk 0:00:11]}  Kd7 {[%clk 0:00:08]} 1/2-1/2


[Site "https://www.chess.com"]

[Event "Titled Tuesday Blitz May 16 Early 2023"]
[White "Hirneise, Jens"]
[Black "Ismagilov, Damir"]
[WhiteFideId "24614734"]
[BlackFideId "34199982"]
[WhiteElo "2345"]
[BlackElo "2143"]
[Result "0-1"]
[Round "06"]
[TimeControl "180+2"]
[Date "2023.05.16"]
[WhiteClock "0:00:06"]
[BlackClock "0:00:18"]

1. Nf3 {[%clk 0:02:57]}  c5 {[%clk 0:02:56]} 2. e3 {[%clk 0:02:58]}  Nc6 {[%clk 0:02:55]} 3. d4 {[%clk 0:02:52]}  e6 {[%clk 0:02:55]} 4. c3 {[%clk 0:02:48]}  Nf6 {[%clk 0:02:53]} 5. Bd3 {[%clk 0:02:48]}  d5 {[%clk 0:02:52]} 6. O-O {[%clk 0:02:48]}  Bd6 {[%clk 0:02:50]} 7. Nbd2 {[%clk 0:02:47]}  O-O {[%clk 0:02:50]} 8. dxc5 {[%clk 0:02:46]}  Bxc5 {[%clk 0:02:50]} 9. e4 {[%clk 0:02:47]}  b6 {[%clk 0:02:29]} 10. Qe2 {[%clk 0:02:46]}  Bb7 {[%clk 0:02:20]} 11. Rd1 {[%clk 0:02:46]}  d4 {[%clk 0:02:01]} 12. e5 {[%clk 0:02:41]}  Nd5 {[%clk 0:01:47]} 13. Qe4 {[%clk 0:02:35]}  g6 {[%clk 0:01:47]} 14. cxd4 {[%clk 0:02:33]}  Be7 {[%clk 0:01:43]} 15. Qg4 {[%clk 0:02:25]}  Ndb4 {[%clk 0:01:34]} 16. Bb1 {[%clk 0:02:24]}  Ba6 {[%clk 0:01:27]} 17. Ne4 {[%clk 0:02:10]}  Be2 {[%clk 0:01:23]} 18. Re1 {[%clk 0:02:04]}  Nxd4 {[%clk 0:01:19]} 19. Bh6 {[%clk 0:01:57]}  Re8 {[%clk 0:01:12]} 20. h4 {[%clk 0:01:34]}  Bxf3 {[%clk 0:01:01]} 21. gxf3 {[%clk 0:01:34]}  Nf5 {[%clk 0:01:01]} 22. a3 {[%clk 0:01:29]}  Nxh6 {[%clk 0:01:00]} 23. Qf4 {[%clk 0:01:27]}  Nf5 {[%clk 0:00:53]} 24. axb4 {[%clk 0:01:27]}  Bxh4 {[%clk 0:00:48]} 25. Bc2 {[%clk 0:01:20]}  Qe7 {[%clk 0:00:46]} 26. Rad1 {[%clk 0:01:16]}  Rad8 {[%clk 0:00:46]} 27. b5 {[%clk 0:01:08]}  h6 {[%clk 0:00:40]} 28. Nd6 {[%clk 0:01:02]}  Nxd6 {[%clk 0:00:38]} 29. exd6 {[%clk 0:00:59]}  Qg5+ {[%clk 0:00:37]} 30. Qxg5 {[%clk 0:00:58]}  Bxg5 {[%clk 0:00:38]} 31. Be4 {[%clk 0:00:55]}  Bf4 {[%clk 0:00:32]} 32. Bc6 {[%clk 0:00:52]}  Rf8 {[%clk 0:00:32]} 33. d7 {[%clk 0:00:43]}  g5 {[%clk 0:00:28]} 34. Ra1 {[%clk 0:00:39]}  Bb8 {[%clk 0:00:28]} 35. Kg2 {[%clk 0:00:39]}  Kg7 {[%clk 0:00:28]} 36. Ra4 {[%clk 0:00:37]}  h5 {[%clk 0:00:28]} 37. Rh1 {[%clk 0:00:37]}  h4 {[%clk 0:00:27]} 38. Kh3 {[%clk 0:00:31]}  Kh6 {[%clk 0:00:26]} 39. Rg1 {[%clk 0:00:31]}  Kh5 {[%clk 0:00:23]} 40. Rg2 {[%clk 0:00:30]}  Rg8 {[%clk 0:00:23]} 41. Re4 {[%clk 0:00:26]}  Rg6 {[%clk 0:00:22]} 42. Rg1 {[%clk 0:00:22]}  Rf6 {[%clk 0:00:22]} 43. Kg2 {[%clk 0:00:22]}  Rf5 {[%clk 0:00:21]} 44. Rh1 {[%clk 0:00:22]}  Rc5 {[%clk 0:00:21]} 45. Re2 {[%clk 0:00:21]}  Rc4 {[%clk 0:00:21]} 46. Re4 {[%clk 0:00:21]}  Rc2 {[%clk 0:00:20]} 47. b4 {[%clk 0:00:19]}  Rb2 {[%clk 0:00:20]} 48. Rc4 {[%clk 0:00:18]}  Bf4 {[%clk 0:00:19]} 49. Re4 {[%clk 0:00:18]}  Kg6 {[%clk 0:00:19]} 50. Rc4 {[%clk 0:00:18]}  Kf6 {[%clk 0:00:20]} 51. Re4 {[%clk 0:00:17]}  Ke7 {[%clk 0:00:20]} 52. Rc4 {[%clk 0:00:18]}  Be3 {[%clk 0:00:21]} 53. Rf1 {[%clk 0:00:17]}  Rh8 {[%clk 0:00:19]} 54. Re4 {[%clk 0:00:17]}  h3+ {[%clk 0:00:19]} 55. Kg3 {[%clk 0:00:15]}  Bxf2+ {[%clk 0:00:16]} 56. Rxf2 {[%clk 0:00:14]}  Rxf2 {[%clk 0:00:17]} 57. Kxf2 {[%clk 0:00:15]}  h2 {[%clk 0:00:18]} 58. Re1 {[%clk 0:00:13]}  h1=Q {[%clk 0:00:18]} 59. Rxh1 {[%clk 0:00:14]}  Rxh1 {[%clk 0:00:19]} 60. f4 {[%clk 0:00:15]}  Rb1 {[%clk 0:00:18]} 61. fxg5 {[%clk 0:00:15]}  Rxb4 {[%clk 0:00:18]} 62. Kf3 {[%clk 0:00:15]}  Rd4 {[%clk 0:00:17]} 63. Kg3 {[%clk 0:00:14]}  Rxd7 {[%clk 0:00:16]} 64. Bxd7 {[%clk 0:00:14]}  Kxd7 {[%clk 0:00:17]} 65. Kf4 {[%clk 0:00:14]}  Ke7 {[%clk 0:00:18]} 66. Ke5 {[%clk 0:00:14]}  Kf8 {[%clk 0:00:16]} 67. Kd6 {[%clk 0:00:08]}  Kg7 {[%clk 0:00:16]} 68. Kc7 {[%clk 0:00:07]}  e5 {[%clk 0:00:16]} 69. Kb7 {[%clk 0:00:07]}  e4 {[%clk 0:00:16]} 70. Kxa7 {[%clk 0:00:08]}  e3 {[%clk 0:00:17]} 71. Kxb6 {[%clk 0:00:09]}  e2 {[%clk 0:00:18]} 72. Kb7 {[%clk 0:00:08]}  e1=Q {[%clk 0:00:18]} 73. b6 {[%clk 0:00:06]}  Qe4+ {[%clk 0:00:18]} 0-1


[Site "https://www.chess.com"]

[Event "Titled Tuesday Blitz May 16 Early 2023"]
[White "Andreev, Konstantin"]
[Black "Jovic, Stanoje"]
[WhiteFideId "24239305"]
[BlackFideId "905020"]
[WhiteElo "2106"]
[BlackElo "2236"]
[Result "0-1"]
[Round "06"]
[TimeControl "180+2"]
[Date "2023.05.16"]
[WhiteClock "0:00:19"]
[BlackClock "0:00:52"]

1. e4 {[%clk 0:03:00]}  c6 {[%clk 0:02:56]} 2. d4 {[%clk 0:03:00]}  d5 {[%clk 0:02:56]} 3. e5 {[%clk 0:03:01]}  c5 {[%clk 0:02:55]} 4. dxc5 {[%clk 0:03:02]}  e6 {[%clk 0:02:54]} 5. Nf3 {[%clk 0:03:02]}  Bxc5 {[%clk 0:02:54]} 6. Bd3 {[%clk 0:03:03]}  Ne7 {[%clk 0:02:53]} 7. a3 {[%clk 0:03:04]}  a5 {[%clk 0:02:49]} 8. O-O {[%clk 0:03:04]}  a4 {[%clk 0:02:47]} 9. Nbd2 {[%clk 0:02:57]}  Nbc6 {[%clk 0:02:46]} 10. Re1 {[%clk 0:02:55]}  Qb6 {[%clk 0:02:44]} 11. Qe2 {[%clk 0:02:53]}  Ng6 {[%clk 0:02:42]} 12. g3 {[%clk 0:02:53]}  O-O {[%clk 0:02:37]} 13. c4 {[%clk 0:02:53]}  f6 {[%clk 0:02:31]} 14. exf6 {[%clk 0:02:49]}  Rxf6 {[%clk 0:02:24]} 15. cxd5 {[%clk 0:02:49]}  exd5 {[%clk 0:02:21]} 16. Bxg6 {[%clk 0:02:30]}  hxg6 {[%clk 0:02:16]} 17. b4 {[%clk 0:01:44]}  axb3 {[%clk 0:02:04]} 18. Rb1 {[%clk 0:01:44]}  Bg4 {[%clk 0:01:58]} 19. Rxb3 {[%clk 0:01:42]}  Qa7 {[%clk 0:01:49]} 20. Bb2 {[%clk 0:01:35]}  Rf7 {[%clk 0:01:40]} 21. h3 {[%clk 0:01:29]}  Bxh3 {[%clk 0:01:39]} 22. Rc1 {[%clk 0:01:00]}  Raf8 {[%clk 0:01:32]} 23. Rbc3 {[%clk 0:00:54]}  Bb6 {[%clk 0:01:27]} 24. Qe1 {[%clk 0:00:38]}  Bg4 {[%clk 0:01:22]} 25. Kg2 {[%clk 0:00:38]}  Ba5 {[%clk 0:01:11]} 26. Rb3 {[%clk 0:00:28]}  Bxf3+ {[%clk 0:01:00]} 27. Rxf3 {[%clk 0:00:24]}  Rxf3 {[%clk 0:00:58]} 28. Qe6+ {[%clk 0:00:25]}  R3f7 {[%clk 0:00:55]} 29. Rh1 {[%clk 0:00:19]}  Qxf2+ {[%clk 0:00:52]} 0-1


[Site "https://www.chess.com"]

[Event "Titled Tuesday Blitz May 16 Early 2023"]
[White "Lesbekova, Assel"]
[Black "Makaraci, Tunahan"]
[WhiteFideId "13713248"]
[BlackFideId "6356559"]
[WhiteElo "1805"]
[BlackElo "2160"]
[Result "0-1"]
[Round "06"]
[TimeControl "180+2"]
[Date "2023.05.16"]
[WhiteClock "0:00:00"]
[BlackClock "0:00:57"]

1. e4 {[%clk 0:03:00]}  Nf6 {[%clk 0:02:58]} 2. e5 {[%clk 0:03:00]}  Nd5 {[%clk 0:02:59]} 3. d4 {[%clk 0:03:01]}  d6 {[%clk 0:02:59]} 4. c4 {[%clk 0:03:02]}  Nb6 {[%clk 0:03:00]} 5. exd6 {[%clk 0:03:02]}  cxd6 {[%clk 0:03:00]} 6. h3 {[%clk 0:03:03]}  g6 {[%clk 0:03:01]} 7. Nf3 {[%clk 0:03:03]}  Bg7 {[%clk 0:03:01]} 8. Nc3 {[%clk 0:03:01]}  O-O {[%clk 0:03:01]} 9. Be2 {[%clk 0:03:00]}  Nc6 {[%clk 0:03:00]} 10. O-O {[%clk 0:02:54]}  Bf5 {[%clk 0:02:59]} 11. Be3 {[%clk 0:02:53]}  d5 {[%clk 0:02:59]} 12. c5 {[%clk 0:02:44]}  Nc4 {[%clk 0:02:54]} 13. Bc1 {[%clk 0:02:39]}  b6 {[%clk 0:02:51]} 14. b3 {[%clk 0:02:25]}  N4a5 {[%clk 0:02:50]} 15. cxb6 {[%clk 0:02:05]}  axb6 {[%clk 0:02:50]} 16. Bd3 {[%clk 0:01:55]}  Nxd4 {[%clk 0:02:23]} 17. Nxd4 {[%clk 0:01:48]}  Bxd4 {[%clk 0:02:22]} 18. Bb2 {[%clk 0:01:48]}  Bxd3 {[%clk 0:02:20]} 19. Qxd3 {[%clk 0:01:49]}  Bg7 {[%clk 0:02:18]} 20. Ba3 {[%clk 0:01:33]}  Re8 {[%clk 0:01:44]} 21. Rac1 {[%clk 0:01:11]}  e6 {[%clk 0:01:40]} 22. Nb5 {[%clk 0:01:10]}  Nb7 {[%clk 0:01:30]} 23. Rc7 {[%clk 0:00:32]}  Rxa3 {[%clk 0:01:27]} 24. Rxb7 {[%clk 0:00:28]}  Rxa2 {[%clk 0:01:27]} 25. Qf3 {[%clk 0:00:25]}  Qf6 {[%clk 0:01:24]} 26. Qxf6 {[%clk 0:00:22]}  Bxf6 {[%clk 0:01:24]} 27. Rxb6 {[%clk 0:00:22]}  Rb2 {[%clk 0:01:21]} 28. Nd6 {[%clk 0:00:21]}  Rd8 {[%clk 0:01:20]} 29. b4 {[%clk 0:00:12]}  Bd4 {[%clk 0:01:16]} 30. Rc6 {[%clk 0:00:12]}  Rxb4 {[%clk 0:01:15]} 31. Rd1 {[%clk 0:00:09]}  Be5 {[%clk 0:01:13]} 32. Nc8 {[%clk 0:00:09]}  Kf8 {[%clk 0:01:11]} 33. Na7 {[%clk 0:00:08]}  Rb7 {[%clk 0:01:08]} 34. Nc8 {[%clk 0:00:06]}  Bc7 {[%clk 0:00:58]} 35. Rdc1 {[%clk 0:00:00]}  Rxc8 {[%clk 0:00:57]} 0-1


[Site "https://www.chess.com"]

[Event "Titled Tuesday Blitz May 16 Early 2023"]
[White "Odegov, Artem"]
[Black "Osinovsky, Stepan"]
[WhiteFideId "34183644"]
[BlackFideId "4157354"]
[WhiteElo "2300"]
[BlackElo "2222"]
[Result "1-0"]
[Round "06"]
[TimeControl "180+2"]
[Date "2023.05.16"]
[WhiteClock "0:00:35"]
[BlackClock "0:00:00"]

1. d4 {[%clk 0:03:00]}  Nf6 {[%clk 0:02:58]} 2. c4 {[%clk 0:03:00]}  g6 {[%clk 0:02:59]} 3. Nc3 {[%clk 0:03:00]}  Bg7 {[%clk 0:02:59]} 4. e4 {[%clk 0:02:59]}  O-O {[%clk 0:03:00]} 5. h3 {[%clk 0:02:59]}  d6 {[%clk 0:03:00]} 6. Be3 {[%clk 0:02:59]}  e5 {[%clk 0:02:59]} 7. d5 {[%clk 0:02:58]}  a5 {[%clk 0:02:59]} 8. g4 {[%clk 0:02:58]}  c6 {[%clk 0:02:53]} 9. Bd3 {[%clk 0:02:55]}  Na6 {[%clk 0:02:51]} 10. Nge2 {[%clk 0:02:52]}  cxd5 {[%clk 0:02:45]} 11. cxd5 {[%clk 0:02:53]}  Nc5 {[%clk 0:02:43]} 12. Bc2 {[%clk 0:02:52]}  Bd7 {[%clk 0:02:39]} 13. a4 {[%clk 0:02:52]}  Qb6 {[%clk 0:02:26]} 14. O-O {[%clk 0:02:20]}  Rac8 {[%clk 0:01:48]} 15. Qd2 {[%clk 0:02:14]}  Qb4 {[%clk 0:01:38]} 16. f3 {[%clk 0:01:53]}  Rc7 {[%clk 0:01:32]} 17. Nc1 {[%clk 0:01:42]}  Qxb2 {[%clk 0:01:17]} 18. N1a2 {[%clk 0:00:56]}  Rfc8 {[%clk 0:00:25]} 19. Rfb1 {[%clk 0:00:48]}  Qa3 {[%clk 0:00:23]} 20. Nc1 {[%clk 0:00:42]}  Ncxe4 {[%clk 0:00:20]} 21. Nxe4 {[%clk 0:00:37]}  Rxc2 {[%clk 0:00:21]} 22. Rxa3 {[%clk 0:00:36]}  Rxd2 {[%clk 0:00:18]} 23. Nxf6+ {[%clk 0:00:36]}  Bxf6 {[%clk 0:00:17]} 24. Bxd2 {[%clk 0:00:37]}  Rc7 {[%clk 0:00:10]} 25. Rc3 {[%clk 0:00:36]}  Rxc3 {[%clk 0:00:07]} 26. Bxc3 {[%clk 0:00:37]}  Bxa4 {[%clk 0:00:07]} 27. Rxb7 {[%clk 0:00:36]}  Bd1 {[%clk 0:00:06]} 28. f4 {[%clk 0:00:36]}  Kg7 {[%clk 0:00:03]} 29. fxe5 {[%clk 0:00:36]}  dxe5 {[%clk 0:00:03]} 30. d6 {[%clk 0:00:36]}  Bf3 {[%clk 0:00:00]} 31. Ra7 {[%clk 0:00:35]} 1-0


[Site "https://www.chess.com"]